[Event "13th KIIT Festival-A 2022"]
[Site "Bhubaneswar"]
[Date "2022.05.29"]
[Round "10.15"]
[White "Abdyjapar, Asyl"]
[Black "Sahib Singh"]
[Result "1/2-1/2"]
[ECO "A13"]
[WhiteElo "2346"]
[BlackElo "1991"]
[Annotator "TA"]
[PlyCount "78"]
[EventDate "2022.05.15"]
[EventType "swiss"]
[EventCountry "IND"]
[SourceTitle "playchess.com"]
[Source "ChessBase"]
[SourceQuality "1"]
[TimeControl "5400+30"]

{[%evp 9,78,0,27,-4,33,29,42,57,47,38,54,33,42,7,15,25,38,33,36,27,48,43,54,-5,36,0,0,0,0,4,1,0,0,-4,0,-3,0,-2,0,0,0,0,0,0,0,0,0,0,0,0,0,-5,-4,-5,-8,-28,-25,-52,-45,-57,-54,-51,-50,-79,-77,-78,-57,-86,-68,-64,-30]} 1. c4 e6 2. g3 d5 3. Bg2 Nf6 4. Nf3 dxc4 5. O-O Nc6 6. Qc2 {A13: English Opening: 1...e6.} Bd7 7. Qxc4 Bd6 8. d4 {White is slightly better.} O-O 9. Nc3 Rb8 10. Qd3 {[#]} e5 $146 {[%emt 1:35:30]} ({Predecessor:} 10... a6 11. a3 h6 12. b4 Qe7 13. Bb2 Rfe8 14. Nd2 e5 15. d5 Nd4 16. Rfc1 Bf5 {½-½ (46) Lindop,A (2112)-Glanville,C (2051) ICCF email 2015}) 11. d5 {[%emt 1:36:00]} Nb4 {[%emt 0:00:30]} 12. Qd1 {[%emt 0:00:30]} c6 {[%emt 0:00:30]} 13. e4 {[%emt 0:00:30][%cal Be2e4,Be4d5][%mdl 32]} cxd5 {[%emt 0:00:30]} 14. exd5 {[%emt 0:00:30]} a5 {[%emt 0:00:30]} 15. a3 {[%emt 0:00:30]} Na6 {[%emt 0:00:30]} 16. h3 {[%emt 0:00:30]} (16. Re1 $14) 16... Qc8 {[%emt 0:00:30]} 17. Ng5 {[%emt 0:00:30]} Nc5 {[%emt 0:00:30]} 18. b4 {[%emt 0:00:30]} axb4 {[%emt 0:00:30]} 19. axb4 {[%emt 0:00:30]} Na6 {[%emt 0:00:30]} 20. Nce4 {[%emt 0:00:30]} Nxe4 {[%emt 0:00:30]} 21. Bxe4 {[%emt 0:00:30]} h6 {[%emt 0:00:30]} 22. Nh7 {[%emt 0:00:30][%cal Bg5h7,Bh7f8,Bf8e6][%mdl 32]} Bxh3 {[%emt 0:00:30] [#] aiming for ...Re8.} 23. Nxf8 {[%emt 0:00:30]} Bxf1 {[%emt 0:00:30]} 24. Ne6 $1 {[%emt 0:00:30][%cal Od1g4]} ({Of course not} 24. Qxf1 Qxf8 25. Qh3 Bxb4 $17) (24. Kxf1 Bxf8 25. Bb2 Bd6 $15) 24... Bh3 {[%emt 0:00:30] Against Qg4} (24... Nxb4 $2 25. Nxg7 Kxg7 26. Qh5 $18) ({Don't play} 24... Bxb4 25. Qg4 fxe6 26. Bxh6 $16) 25. Nxg7 {[%emt 0:00:30] And now Nh5 would win.} Qg4 {[%emt 0:00:30]} (25... Kxg7 $2 26. Qh5 Qh8 27. Qxh3 Bxb4 28. Rb1 $18) 26. Qxg4 {[%emt 0:00:30]} Bxg4 {[%emt 0:00:30]} 27. Nf5 {[%emt 0:00:30]} Bxf5 {[%emt 0:00:30]} 28. Bxf5 {[%emt 0:00:30]} Kg7 {[%emt 0:00:30]} 29. b5 {[%emt 0:00:30]} Nc7 {[%emt 0:00:30][%csl LRb5,LRd5]} 30. Ra4 {[%emt 0:00:30]} h5 {[%emt 0:00:30]} 31. Rh4 {[%emt 0:00:30]} Rh8 {[%emt 0:00:30]} 32. Rc4 {[%emt 0:00:30]} Nxb5 {[%emt 0:00:30]} 33. Bc8 {[%emt 0:00:30]} b6 {[%emt 0:00:30]} 34. Bb2 {[%emt 0:00:30] Inhibits Nd4.} Bc5 {[%emt 0:00:30]} 35. Bd7 {[%emt 0:00:30]} ({But not} 35. Bxe5+ f6 36. Ba6 Na3 37. Rxc5 bxc5 $17) 35... Nd4 {[%emt 0:00:30]} 36. Ra4 {[%emt 0:00:30]} h4 {[%emt 0:00:30] ...hxg3 is the strong threat.} 37. Kg2 {[%emt 0:00:30]} hxg3 {[%emt 0:00:30]} 38. fxg3 {[%emt 0:00:30]} Rh6 {[%emt 0:00:30]} 39. Ra7 {[%emt 0:00:30]} Kf8 {[%emt 0:00:30] Weighted Error Value: White=0.11 (very precise) /Black=0.07 (flawless)} 1/2-1/2

[Event "13th KIIT Festival-A 2022"]
[Site "Bhubaneswar"]
[Date "2022.05.29"]
[Round "10.16"]
[White "Saravana, Krishnan P."]
[Black "Soni, Krishan"]
[Result "1-0"]
[ECO "C41"]
[WhiteElo "2269"]
[BlackElo "1904"]
[Annotator "TA"]
[PlyCount "79"]
[EventDate "2022.05.15"]
[EventType "swiss"]
[EventCountry "IND"]
[SourceTitle "playchess.com"]
[Source "ChessBase"]
[SourceQuality "1"]
[TimeControl "5400+30"]

{[%evp 14,79,51,55,48,44,52,49,100,109,119,107,103,103,103,102,114,82,113,67,58,62,160,165,160,154,145,112,152,151,154,93,120,125,117,113,127,142,219,201,204,221,207,213,257,235,327,312,305,281,464,431,763,717,1370,1192,1190,1151,2004,1884,29986,29987,29987,1336,29997,29998,29998,29999]} 1. e4 {[%emt 0:00:04]} d6 {[%emt 0:06:57]} 2. d4 {[%emt 0:00:22]} Nf6 {[%emt 0:00:06]} 3. Nc3 {[%emt 0:00:13]} Nbd7 {[%emt 0:00:09]} 4. Nf3 {[%emt 0:00:24]} e5 {[%emt 0:00:10]} 5. Bc4 {[%emt 0:02:34]} Be7 {[%emt 0:00:06]} 6. O-O {[%emt 0:03:05]} c6 {[%emt 0:00:07]} 7. a4 {[%emt 0:00:34]} Qc7 {[%emt 0:02:10] 7...h6 is becoming the main line.} 8. Re1 {[%emt 0:00:12]} h6 {[%emt 0:00:43] C41: Philidor Defence.} 9. a5 {[%emt 0:01:47]} Nf8 10. Nh4 {[%emt 0:07:55]} g5 {[%emt 0:18:58] [#]} ({Black should play} 10... Ne6 $14) 11. Nf5 $146 {[%emt 0:07:15]} ({Predecessor:} 11. dxe5 dxe5 12. Nf5 Ng6 13. Qf3 Bxf5 14. exf5 Nh4 15. Qe2 Nxf5 16. Qxe5 Qxe5 17. Rxe5 {1-0 (31) Garbisu de Goni,U (2380)-Gomez Guerrero,M (2205) Torrevieja 1997}) 11... Ng6 {[%emt 0:03:47]} 12. Ng7+ {[%emt 0:11:03]} Kf8 {[%emt 0:00:02]} 13. Nf5 $36 {[%emt 0:00:06][%mdl 2048] White is on the roll. White is much more active. The black rooks are badly placed.} Be6 {[%emt 0:11:59]} 14. dxe5 $1 {[%emt 0:11:51]} Nxe5 {[%emt 0:02:25]} 15. Bxe6 {[%emt 0:00:29]} fxe6 {[%emt 0:00:33]} 16. Nd4 {[%emt 0:00:05]} (16. Nxe7 $16 {[%cal Of2f4] Threatens to win with f4!} Qxe7 17. f4 gxf4 18. Bxf4) 16... Qd7 $14 {[%emt 0:01:12]} 17. f4 {[%emt 0:00:21][%cal Bf2f4,Bf4e5][%mdl 32]} Nf7 {[%emt 0:05:38]} (17... gxf4 $14 18. Bxf4 Kg7) 18. e5 $1 $16 {[%emt 0:11:22]} dxe5 {[%emt 0:10:17]} 19. fxe5 {[%emt 0:00:25]} Nd5 {[%emt 0:00:41]} 20. Nb3 {[%emt 0:13:58]} Rd8 {[%emt 0:10:53] [#]} 21. Ne4 $1 {[%emt 0:02:59]} Rh7 {[%emt 0:06:51]} 22. Kh1 {[%emt 0:01:44]} (22. Qe2 $142) 22... Nf6 {[%emt 0:01:08]} 23. Qf3 {[%emt 0:02:14]} Nxe4 {[%emt 0:00:41]} 24. Qxe4 {[%emt 0:00:06]} Kg8 {[%emt 0:01:18]} 25. Be3 {[%emt 0:00:13][%cal Bc1e3,Be3b6,Bb6c5,Bc5d6][%mdl 32]} a6 {[%emt 0:06:55]} (25... Qd5 $16 {was necessary.} 26. Bxa7 Qxe4 27. Rxe4 Rd5) 26. Bb6 $18 {[%emt 0:00:21]} Re8 {[%emt 0:00:00]} 27. Rad1 {[%emt 0:01:27] Prevents Qd5.} Qc8 {[%emt 0:00:19]} 28. Bc5 {[%emt 0:01:59]} Nh8 {[%emt 0:02:01]} 29. Bd6 {[%emt 0:00:37]} Bd8 {[%emt 0:02:46]} 30. Rf1 {[%emt 0:02:29]} Rg7 {[%emt 0:00:07]} 31. Rd3 {[%emt 0:03:30]} Bc7 $2 {[%emt 0:01:39]} (31... g4 32. Qb4 Nf7) 32. Nc5 {[%emt 0:02:02]} Bxa5 {[%emt 0:00:55]} (32... b6 $142 33. axb6 Bxb6) 33. Rdf3 {[%emt 0:00:09][%cal Oc5e6] Nxe6! is the strong threat.} Ng6 {[%emt 0:03:45]} 34. Rf6 {[%emt 0:00:26]} Nf4 {[%emt 0:00:02]} 35. g3 {[%emt 0:00:47]} b6 {[%emt 0:00:01]} 36. gxf4 {[%emt 0:06:52]} bxc5 {[%emt 0:00:04]} 37. fxg5 {[%emt 0:00:05]} hxg5 {[%emt 0:03:35] [#]} 38. Rg6 {[%emt 0:00:58]} (38. Rf7 $142 $3 {[%mdl 512]} Re7 39. Rxe7 Rxe7 40. Bxe7 Qe8 41. Bxg5 Qh5 42. Bf6 Bd2 43. Rg1+ Kf8 44. Qd3) 38... Bd2 {[%emt 0:00:00]} 39. Rxg7+ {[%emt 0:00:16]} Kxg7 {[%emt 0:01:00] [#]} 40. Rf7+ $3 {[%emt 0:00:16][%mdl 576] Decoy.  Weighted Error Value: White=0.07 (flawless) /Black=0.79} 1-0

[Event "13th KIIT Festival-A 2022"]
[Site "Bhubaneswar"]
[Date "2022.05.29"]
[Round "10.17"]
[White "Shaik Sumer Arsh"]
[Black "Sangma, Rahul"]
[Result "1-0"]
[ECO "E33"]
[WhiteElo "1999"]
[BlackElo "2232"]
[Annotator "TA"]
[PlyCount "63"]
[EventDate "2022.05.15"]
[EventType "swiss"]
[EventCountry "IND"]
[SourceTitle "playchess.com"]
[Source "ChessBase"]
[SourceQuality "1"]
[TimeControl "5400+30"]

{[%evp 10,63,40,34,33,25,45,43,34,33,46,33,37,45,38,29,43,10,5,17,95,88,228,239,238,243,240,251,237,228,220,201,236,233,538,523,989,1002,1408,1398,1394,1352,1256,1235,29981,29980,29994,5273,1267,744,731,731,711,708,662,653]} 1. d4 {[%emt 0:00:07]} Nf6 {[%emt 0:04:26]} 2. c4 {[%emt 0:00:10]} e6 {[%emt 0:00:05]} 3. Nc3 {[%emt 0:00:09]} Bb4 {[%emt 0:00:01]} 4. Qc2 {[%emt 0:00:15]} Nc6 {[%emt 0:00:24]} 5. e3 {[%emt 0:01:12]} d6 {[%emt 0:00:14]} 6. Nf3 {[%emt 0:03:15]} O-O {[%emt 0:00:27] E33: Nimzo-Indian: Classical: 4...Nc6.} 7. Bd2 {[%emt 0:03:30]} e5 {[%emt 0:02:02]} 8. dxe5 {[%emt 0:14:52] is the legacy move (8.a3).} Nxe5 {[%emt 0:06:07] White is slightly better.} 9. a3 {[%emt 0:04:35]} Bxc3 {[%emt 0:02:53]} 10. Bxc3 {[%emt 0:00:13]} Qe7 {[%emt 0:00:18]} 11. Nxe5 {[%emt 0:20:07]} dxe5 {[%emt 0:00:11]} 12. Bd3 {[%emt 0:02:30]} Re8 {[%emt 0:07:09] [#]} 13. O-O-O $146 {[%emt 0:16:59]} ({Predecessor:} 13. O-O e4 14. Be2 Bf5 15. Rad1 Rad8 16. Qa4 a6 17. Qa5 Bc8 18. Bb4 Rxd1 19. Bxe7 Rxf1+ 20. Kxf1 Rxe7 {1-0 (96) Foltys,J-Gawlikowski,S Karlovy Vary 1948}) 13... e4 {[%emt 0:10:31]} 14. Be2 {[%emt 0:07:35][%cal Og2g4]} Bf5 {[%emt 0:03:42] Prevents g4.} (14... Ng4 $11 15. Bf1 Bf5) 15. g4 $16 {[%emt 0:03:18]} Bg6 {[%emt 0:06:18] This move loses the game for Black.} (15... Bc8 $16) 16. h4 $18 {[%emt 0:01:17][%cal Bh2h4,Bh4h5,Bh5h6][%mdl 32] And now h5 would win.} h6 {[%emt 0:00:12]} 17. h5 {[%emt 0:03:27]} Bh7 {[%emt 0:00:03]} 18. g5 {[%emt 0:05:36]} hxg5 {[%emt 0:00:13]} 19. h6 {[%emt 0:00:02]} g6 {[%emt 0:01:39]} 20. Rhg1 {[%emt 0:02:03]} Nd7 {[%emt 0:10:49]} 21. Rd5 {[%emt 0:00:05]} f5 $2 {[%emt 0:01:15]} (21... Nc5 22. b4 (22. Rdxg5 a5 $16) (22. Rgxg5 Ne6 $18) 22... Nd7) 22. c5 {[%emt 0:00:45] aiming for Bc4.} Red8 {[%emt 0:05:42] [#]} 23. Rxf5 $3 {[%emt 0:03:14][%mdl 512] Qb3+ would kill now.} gxf5 {[%emt 0:07:15]} (23... Qe6 24. Rfxg5) 24. Qb3+ {[%emt 0:00:22]} Kf8 {[%emt 0:00:24]} 25. Bg7+ {[%emt 0:00:03][%mdl 64] Deflection} Qxg7 {[%emt 0:00:07]} 26. hxg7+ {[%emt 0:00:01]} Kxg7 {[%emt 0:00:01]} 27. Qe6 {[%emt 0:00:43]} g4 {[%emt 0:00:42] [#]} 28. Bxg4 $1 {[%emt 0:00:30][%mdl 512]} fxg4 {[%emt 0:01:38] White is clearly winning.} 29. Qe7+ {[%emt 0:02:07]} Kh8 {[%emt 0:04:01]} 30. Rxg4 {[%emt 0:00:17][%csl Gg4][%cal Re7g7]} Rg8 {[%emt 0:00:03] Prevents Qg7+.} 31. Rxg8+ {[%emt 0:00:10]} Rxg8 {[%emt 0:00:23]} 32. Qxd7 {[%emt 0:00:02] Weighted Error Value: White=0.07 (flawless) /Black=0.62} 1-0

[Event "13th KIIT Festival-A 2022"]
[Site "Bhubaneswar"]
[Date "2022.05.29"]
[Round "10.18"]
[White "Dhananjay S"]
[Black "Ankit Ray"]
[Result "1-0"]
[ECO "E18"]
[WhiteElo "2218"]
[BlackElo "1932"]
[Annotator "TA"]
[PlyCount "91"]
[EventDate "2022.05.15"]
[EventType "swiss"]
[EventCountry "IND"]
[SourceTitle "playchess.com"]
[Source "ChessBase"]
[SourceQuality "1"]
[TimeControl "5400+30"]

{[%evp 23,91,27,27,9,49,59,50,56,49,37,57,47,60,17,81,77,77,50,62,64,62,54,55,53,58,49,71,61,91,79,89,85,125,68,87,83,156,102,125,125,125,125,125,126,307,314,302,316,312,245,315,277,386,381,537,528,647,615,926,861,1262,1287,1413,1414,1676,1483,29975,29976,6806,5097]} 1. c4 {[%emt 0:01:17]} e6 {[%emt 0:01:33]} 2. d4 {[%emt 0:00:14]} Nf6 {[%emt 0:01:07]} 3. Nf3 {[%emt 0:00:09]} b6 {[%emt 0:01:39]} 4. g3 {[%emt 0:00:22]} Bb4+ {[%emt 0:01:22]} 5. Bd2 {[%emt 0:00:35]} Be7 {[%emt 0:00:44]} 6. Nc3 {[%emt 0:00:10]} Bb7 {[%emt 0:01:15]} 7. Bg2 {[%emt 0:00:23]} c6 {[%emt 0:00:29]} 8. O-O {[%emt 0:08:07]} d5 {[%emt 0:01:30]} 9. b3 {[%emt 0:05:51]} O-O {[%emt 0:04:22]} 10. Bc1 {[%emt 0:02:02]} c5 {[%emt 0:01:29]} 11. dxc5 {[%emt 0:01:40]} bxc5 {[%emt 0:00:58]} 12. cxd5 {[%emt 0:00:20]} exd5 {[%emt 0:02:25]} 13. Ne5 {[%emt 0:00:16] E18: Queen's Indian: Old Main Line (4 g3 Bb7 5 Bg2 Be7 6 0-0 0-0 7 Nc3).} Nbd7 {[%emt 0:02:36] [#]} 14. Nc4 $146 {[%emt 0:02:02][%cal Rc3d5,Be5c4,Bc4a5,Ba5c6][%mdl 32]} ({Predecessor:} 14. f4 Qc7 15. Nxd7 Qxd7 16. e4 d4 17. e5 Bxg2 18. exf6 Bxf1 19. Ne4 Ba6 20. fxe7 Qxe7 21. Ng5 Rfe8 22. f5 h6 23. Nh3 Qe1+ 24. Qxe1 Rxe1+ 25. Kf2 Rae8 {0-1 (23) Van Gool,H (2114)-Duijker,R (2220) Vlissingen 2008}) 14... Nb6 {[%emt 0:07:49]} 15. Na5 $1 {[%emt 0:04:32] White is slightly better.} Ba6 {[%emt 0:00:45]} 16. Nc6 {[%emt 0:00:04]} Qc7 {[%emt 0:04:34]} 17. Nxe7+ {[%emt 0:07:13]} Qxe7 {[%emt 0:00:03]} 18. Re1 {[%emt 1:04:13]} Rad8 {[%emt 0:00:13]} (18... d4 $11 {remains equal.}) 19. e3 $16 {[%emt 0:00:00]} Rfe8 {[%emt 0:05:58]} 20. Ba3 {[%emt 0:00:00]} d4 {[%emt 0:03:00]} 21. exd4 {[%emt 0:00:00]} Qxe1+ {[%emt 0:00:03]} 22. Qxe1 {[%emt 0:00:00]} Rxe1+ {[%emt 0:00:08]} 23. Rxe1 {[%emt 0:00:00]} cxd4 {[%emt 0:00:10]} 24. Ne4 {[%emt 0:00:00]} Nxe4 {[%emt 0:01:55]} 25. Bxe4 {[%emt 0:00:00]} d3 {[%emt 0:00:29] [#] Threatens to win with ...d2.} 26. Bb4 {[%emt 0:00:00]} g6 {[%emt 0:00:53]} (26... d2 $2 27. Rd1 $16) 27. Bd2 {[%emt 0:00:00]} Nd7 {[%emt 0:06:39]} 28. Rc1 {[%emt 0:00:00]} (28. Bf3 $16) 28... Nf6 {[%emt 0:02:39]} 29. Bf3 {[%emt 0:00:00] Strongly threatening Rc6. A strong pair of Bishops.} Nd5 {[%emt 0:00:26] [#]} ({Better is} 29... Bc8) 30. Kg2 {[%emt 0:00:00]} (30. a4 $142 $1) 30... Kg7 {[%emt 0:00:33]} 31. Rc5 {[%emt 0:00:00]} Bb7 {[%emt 0:00:38]} 32. Rc4 {[%emt 0:00:00]} Rd7 {[%emt 0:07:33]} 33. Rd4 {[%emt 0:00:00]} Nf6 $2 {[%emt 0:05:41] Loses the game.} (33... Bc6 $16 {was worth a try.} 34. h4 (34. Rxd3 Ne3+ 35. Rxe3 Bxf3+ 36. Kxf3 Rxd2 $16) 34... h5 35. Rxd3 Ne3+ 36. Rxe3 Bxf3+ 37. Kxf3 Rxd2) 34. Rxd7 $18 {[%emt 0:00:00]} Bxf3+ {[%emt 0:00:07]} 35. Kxf3 {[%emt 0:00:00] Black must now prevent Bc3.} Nxd7 {[%emt 0:00:10][%mdl 4096] Endgame KB-KN} 36. Ke4 {[%emt 0:00:00] Against Ne5} Kf6 {[%emt 0:00:41]} 37. Kxd3 {[%emt 0:00:00] aiming for Kc4.} Ke5 {[%emt 0:00:07]} 38. Kc4 {[%emt 0:00:00]} a6 {[%emt 0:00:22]} (38... Kd6 $142 39. Kb5 Kc7) 39. Kb4 {[%emt 0:00:00]} Ke4 {[%emt 0:04:34]} 40. Ka5 {[%emt 0:00:00]} Kf3 {[%emt 0:00:23]} 41. Be3 {[%emt 0:00:00]} Kg2 {[%emt 0:00:11]} 42. h4 {[%emt 0:00:00]} Ne5 {[%emt 0:00:05]} 43. Kxa6 {[%emt 0:00:00]} Nd3 {[%emt 0:00:24]} 44. a3 {[%emt 0:00:00]} Nxf2 {[%emt 0:00:57]} 45. Bxf2 {[%emt 0:00:00]} Kxf2 {[%emt 0:00:09]} 46. b4 {[%emt 0:00:00] Weighted Error Value: White=0.07 (flawless) /Black=0.67} 1-0

[Event "13th KIIT Festival-A 2022"]
[Site "Bhubaneswar"]
[Date "2022.05.29"]
[Round "10.19"]
[White "Kavinda, Akila"]
[Black "Rohit S"]
[Result "1-0"]
[ECO "B92"]
[WhiteElo "1996"]
[BlackElo "2141"]
[Annotator "TA"]
[PlyCount "69"]
[EventDate "2022.05.15"]
[EventType "swiss"]
[EventCountry "IND"]
[SourceTitle "playchess.com"]
[Source "ChessBase"]
[SourceQuality "1"]
[TimeControl "5400+30"]

{[%evp 19,69,0,12,0,9,5,8,4,7,0,0,-28,-12,-14,0,-26,-29,-27,-26,-29,-26,-28,-17,-43,-40,-43,0,-2,0,-17,0,0,12,-7,5,3,12,15,46,54,51,62,610,597,614,616,606,605,599,596,783,578]} 1. e4 {[%emt 0:00:03] CB} c5 {[%emt 0:00:32]} 2. Nf3 {[%emt 0:00:07]} d6 {[%emt 0:00:07]} 3. d4 {[%emt 0:00:07]} cxd4 {[%emt 0:00:05]} 4. Nxd4 {[%emt 0:00:03]} Nf6 {[%emt 0:00:06]} 5. Nc3 {[%emt 0:00:05]} a6 {[%emt 0:00:03]} 6. Be2 {[%emt 0:00:05]} e5 {[%emt 0:00:05]} 7. Nb3 {[%emt 0:00:04]} Be7 {[%emt 0:00:03]} 8. Bg5 {[%emt 0:00:23]} Be6 {[%emt 0:01:39]} 9. Bxf6 {[%emt 0:01:13]} Bxf6 {[%emt 0:00:01]} 10. Qd3 {[%emt 0:00:07]} O-O {[%emt 0:03:40] 10...Be7 is setting a new trend.} 11. Rd1 {[%emt 0:01:32] B92: Sicilian Najdorf: 6 Be2.} (11. O-O-O {seems wilder.} Qb6 12. Qxd6 Qxf2 13. Rhf1) 11... Be7 {[%emt 0:04:45]} 12. Nd5 {[%emt 0:01:04]} Bxd5 {[%emt 0:03:47]} 13. Qxd5 {[%emt 0:00:06] The position is equal.} Qc7 {[%emt 0:01:29]} 14. Nd2 {[%emt 0:10:18]} Nd7 {[%emt 0:05:30] [#]} 15. Nc4 $146 {[%emt 0:05:29]} ({Predecessor:} 15. O-O b5 16. c3 g6 17. a3 Rab8 18. Rfe1 Rfd8 19. Qa2 Nc5 20. Bf1 Bg5 21. Nb3 {½-½ (52) Carlsen,M (2834)-Giri,A (2784) Doha 2015 CBM 170 [CB]}) 15... Nf6 {[%emt 0:01:15]} 16. Qd3 {[%emt 0:00:36]} Rfd8 {[%emt 0:12:04]} 17. Ne3 {[%emt 0:00:33] Prevents d5.} Qa5+ {[%emt 0:00:29]} 18. c3 {[%emt 0:02:30]} Qxa2 {[%emt 0:00:21]} 19. O-O {[%emt 0:07:43]} Qe6 {[%emt 0:03:25]} 20. h3 {[%emt 0:01:49]} g6 {[%emt 0:03:41]} 21. Bf3 {[%emt 0:10:37]} Rac8 {[%emt 0:08:43]} 22. Nd5 {[%emt 0:23:58][%cal Of3g4]} Nxd5 {[%emt 0:09:42]} 23. Bg4 $1 {[%emt 0:01:51] [#]} Qf6 {[%emt 0:02:56]} 24. Qxd5 {[%emt 0:00:12]} (24. Bxc8 Nf4) 24... Rc6 {[%emt 0:01:38]} 25. Rd3 {[%emt 0:02:09] aiming for Rf3.} Qg7 {[%emt 0:04:03]} 26. Qb3 {[%emt 0:13:19][%mdl 1024] White has compensation.} b5 {[%emt 0:01:27]} 27. Qd5 {[%emt 0:00:48]} Rb6 {[%emt 0:00:42]} 28. f4 {[%emt 0:06:31]} Rf8 {[%emt 0:05:55]} 29. f5 {[%emt 0:01:23]} h5 {[%emt 0:06:25]} 30. Bd1 {[%emt 0:01:20] [#] Hoping for Rdf3.} (30. fxg6 {with more complications.} Qxg6 31. Bd1 h4 32. Rdf3) 30... Kh7 $2 {[%emt 0:03:44][%mdl 8192] A mistake that costs the game.} (30... h4 $14) 31. f6 $18 {[%emt 0:01:27] White is clearly winning.} Qxf6 {[%emt 0:01:27]} 32. Rxf6 {[%emt 0:00:12]} Bxf6 {[%emt 0:00:03]} 33. Rf3 {[%emt 0:01:08]} Kg7 {[%emt 0:00:02]} 34. Bb3 {[%emt 0:00:28]} a5 {[%emt 0:00:30]} 35. Qd2 {[%emt 0:01:00] Weighted Error Value: White=0.05 (flawless) /Black=0.40} 1-0